fUSD/lending_fUSD_20260427
["ID","MTS","AMOUNT","RATE_DAILY","PERIOD"]
[421209815,1777258238473,-150.0,8.247e-05,2]
[421209816,1777258238483,-4.29440059,8.247e-05,2]
[421209990,1777258240618,-452.77341858,8.247e-05,2]
[421210002,1777258240723,-221.09218083,8.247e-05,2]
[421210004,1777258240733,-340.13775813,8.248e-05,2]
[421210261,1777258243289,-1591.38887834,8.215e-05,2]
[421210263,1777258243301,-722.8955016,8.215e-05,2]
[421210602,1777258246546,-494.31698231,8.127e-05,2]
[421210614,1777258246646,-1774.21894376,8.127e-05,2]
[421210616,1777258246655,-160.71562006,8.215e-05,2]
[421210618,1777258246666,-79.86224187,8.248e-05,2]
[421210620,1777258246675,-5.02774642,8.248e-05,2]
[421210629,1777258246746,-322.8916,8.248e-05,2]
[421210638,1777258246828,-397.2731855,8.248e-05,2]
[421210641,1777258246839,-364.34609194,8.248e-05,2]
[421211240,1777258403009,150.0,0.00032877,120]
[421211241,1777258411222,317.75081896,0.000321,120]
[421211242,1777258569257,618.84,0.00032192,120]
[421211243,1777258573572,31717.35900603,0.00032876,120]
[421211244,1777258731081,254.20065517,0.000321,120]
[421211266,1777259050493,203.36052414,0.000321,120]
[421211270,1777259159152,2000.0,0.0003,120]
[421211271,1777259172392,2000.0,0.0003,120]
[421211272,1777259191501,2000.0,0.0003,120]
[421211273,1777259230513,2200.0,7e-05,2]
[421211274,1777259241591,17661.12009648,0.00032876,120]
[421211276,1777259251074,17020.14405306,0.00032877,120]
[421211277,1777259283539,1175.73,0.0003,120]
[421211298,1777259369198,162.68841931,0.000321,120]
[421211325,1777259432640,-300.0,7.348e-05,2]
[421211326,1777259432650,-78.71365915,7.348e-05,2]
[421211330,1777259432701,-292.97700002,7.348e-05,2]
[421211331,1777259432723,-828.30934083,7.348e-05,2]
[421211332,1777259432732,-322.073,7.349e-05,2]
[421211333,1777259432741,-4133.65,7.349e-05,2]
[421211334,1777259432750,-500.0,7.398e-05,2]
[421211335,1777259432759,-411.04860262,7.398e-05,2]
[421211336,1777259432768,-500.0,7.398e-05,2]
[421211337,1777259432778,-18554.65491533,7.399e-05,2]
[421211338,1777259432826,-500.0,7.398e-05,2]
[421211339,1777259432835,-138.34053726,7.399e-05,2]
[421211340,1777259438607,-500.0,7.398e-05,2]
[421211341,1777259438617,-359.67485648,7.398e-05,2]
[421211342,1777259438627,-43562.442907,7.399e-05,2]
[421211343,1777259438638,-714.19857358,7.399e-05,2]
[421211344,1777259438653,-1607.76906108,7.399e-05,2]
[421211345,1777259438665,-7301.41972174,7.399e-05,2]
[421211346,1777259438684,-597.34621392,7.399e-05,2]
[421211347,1777259438696,-1109.46875634,7.399e-05,2]
[421211348,1777259438707,-14648.94453654,7.399e-05,2]
[421211349,1777259438718,-290.84887371,7.399e-05,2]
[421211352,1777259438741,-22637.82891913,7.399e-05,2]
[421211354,1777259438756,-1232.88102209,7.399e-05,2]
[421211355,1777259438767,-302.97385118,7.399e-05,2]
[421211356,1777259440655,-705.855,7.399e-05,2]
[421211357,1777259440766,-540.47523147,7.399e-05,2]
[421211358,1777259440817,-509.0,7.399e-05,2]
[421211376,1777259443579,-500.0,7.398e-05,2]
[421211377,1777259443589,-500.0,7.398e-05,2]
[421211378,1777259443598,-500.0,7.398e-05,2]
[421211379,1777259443608,-500.0,7.398e-05,2]
[421211380,1777259443618,-249.35416332,7.398e-05,2]
[421211381,1777259443632,-37765.75497988,7.399e-05,2]
[421211400,1777259446454,-1584.45,7.399e-05,2]
[421211403,1777259469263,152.0,8.883e-05,30]
[421211404,1777259470651,152.0,8.892e-05,30]
[421211405,1777259589774,-257.658,7.251e-05,2]
[421211406,1777259589796,-3306.92,7.251e-05,2]
[421211407,1777259589820,-153.16344728,7.396e-05,2]
[421211408,1777259589843,-212.60451904,7.398e-05,2]
[421211409,1777259589866,-300.0,7.398e-05,2]
[421211410,1777259589888,-150.0,7.398e-05,2]
[421211411,1777259589911,-300.0,7.398e-05,2]
[421211412,1777259589936,-311.65403368,7.399e-05,2]
[421211413,1777259601554,500.0,0.0003287,120]
[421211414,1777259652670,250.0,0.00032877,120]
[421211415,1777259661358,250.0,0.00032877,120]
[421211416,1777259670558,250.0,0.00032877,120]
[421211417,1777259679727,314.35123157,0.00032876,120]
[421211418,1777259680055,232.0,0.00032876,120]
[421211419,1777259681898,464.0,0.00032876,120]
[421211420,1777259684735,250.0,0.00032877,120]
[421211421,1777259687971,162.68841931,0.000321,120]
[421211422,1777259866843,2332.0,0.00032876,120]
[421211423,1777259944230,1000.0,0.000166,120]
[421211424,1777259944526,1000.0,0.000165,120]
[421211425,1777260006178,162.68841931,0.000321,120]
[421211426,1777260007026,1000.0,0.000166,120]
[421211427,1777260007304,1000.0,0.000165,120]
[421211428,1777260070371,1000.0,0.000166,120]
[421211429,1777260070407,1000.0,0.000165,120]
[421211430,1777260132629,1000.0,0.000166,120]
[421211431,1777260132901,1000.0,0.000165,120]
[421211432,1777260180851,251.0,0.00032876,120]
[421211433,1777260195627,1000.0,0.000166,120]
[421211434,1777260195913,1000.0,0.000165,120]
[421211435,1777260198114,500.0,0.00026699,120]
[421211436,1777260198474,500.0,0.00028699,120]
[421211437,1777260198800,512.757329,0.00030699,120]
[421211442,1777260259353,1000.0,0.000166,120]
[421211443,1777260259393,1000.0,0.000165,120]
[421211444,1777260320870,1000.0,0.000166,120]
[421211445,1777260321129,1000.0,0.000165,120]
[421211446,1777260324743,162.68841931,0.000321,120]
[421211447,1777260387287,1000.0,0.000166,120]
[421211448,1777260388315,1000.0,0.000165,120]
[421211457,1777260450929,1000.0,0.000166,120]
[421211458,1777260451213,1000.0,0.000165,120]
[421211459,1777260470711,500.0,0.00032192,120]
[421211460,1777260513737,1000.0,0.000166,120]
[421211461,1777260514229,1000.0,0.000165,120]
[421211491,1777260632503,-300.0,7.243e-05,2]
[421211492,1777260632513,-246.0,7.243e-05,2]
[421211493,1777260632522,-2645.536,7.251e-05,2]
[421211494,1777260632532,-206.126,7.251e-05,2]
[421211495,1777260632541,-153.16344728,7.296e-05,2]
[421211496,1777260632551,-1200.0,7.296e-05,2]
[421211497,1777260632560,-1197.0,7.297e-05,2]
[421211498,1777260632569,-300.0,7.297e-05,2]
[421211499,1777260632579,-300.0,7.297e-05,2]
[421211500,1777260632588,-300.0,7.297e-05,2]
[421211501,1777260632597,-9.72391844,7.298e-05,2]
[421211502,1777260632609,-384.61557316,7.298e-05,2]
[421211503,1777260632618,-500.0,7.298e-05,2]
[421211504,1777260632627,-500.0,7.298e-05,2]
[421211505,1777260632636,-500.0,7.298e-05,2]
[421211506,1777260632646,-500.0,7.298e-05,2]
[421211507,1777260632655,-164.37691858,7.298e-05,2]
[421211508,1777260632665,-500.0,7.298e-05,2]
[421211509,1777260632674,-308.11651622,7.298e-05,2]
[421211510,1777260632683,-500.0,7.298e-05,2]
[421211511,1777260632695,-249.92824037,7.298e-05,2]
[421211512,1777260632704,-500.0,7.298e-05,2]
[421211513,1777260632713,-314.01822342,7.298e-05,2]
[421211514,1777260632723,-150.0,7.298e-05,2]
[421211515,1777260632732,-2196.25442691,7.299e-05,2]
[421211516,1777260632747,-28725.67325128,7.299e-05,2]
[421211558,1777260638603,-500.0,7.298e-05,2]
[421211559,1777260638613,-272.18801885,7.298e-05,2]
[421211560,1777260638623,-365250.27472181,7.299e-05,2]
[421211561,1777260638632,-1000.0,7.398e-05,2]
[421211562,1777260638642,-2271.473609,7.408e-05,2]
[421211563,1777260638652,-981.9783665,7.408e-05,2]
[421211564,1777260638662,-41136.214505,7.408e-05,2]
[421211565,1777260638672,-28163.2196613,7.408e-05,2]
[421211566,1777260638681,-10720.003648,7.408e-05,2]
[421211567,1777260638690,-3306.3115017,7.408e-05,2]
[421211568,1777260638700,-19274.6387016,7.408e-05,2]
[421211569,1777260638710,-6538.4766696,7.43e-05,2]
[421211570,1777260638719,-4999.99,7.43e-05,2]
[421211571,1777260638729,-9999.99,7.43e-05,2]
[421211572,1777260638738,-432.47,7.43e-05,2]
[421211573,1777260638747,-999.99,7.43e-05,2]
[421211574,1777260638756,-150.99,7.43e-05,2]
[421211575,1777260638765,-31494.37,7.43e-05,2]
[421211576,1777260638774,-9999.99,7.43e-05,2]
[421211577,1777260638784,-9378.41,7.43e-05,2]
[421211578,1777260638793,-299.99,7.43e-05,2]
[421211579,1777260638802,-29647.61,7.43e-05,2]
[421211580,1777260638811,-9999.99,7.43e-05,2]
[421211581,1777260638821,-359.71,7.43e-05,2]
[421211582,1777260638830,-9999.99,7.43e-05,2]
[421211583,1777260638839,-6729.34,7.43e-05,2]
[421211584,1777260638849,-7624.87,7.43e-05,2]
[421211585,1777260638859,-23576.41,7.43e-05,2]
[421211586,1777260638868,-406.9,7.43e-05,2]
[421211587,1777260638878,-151.0,7.43e-05,2]
[421211588,1777260638888,-220.14198,7.43e-05,2]
[421211589,1777260638898,-500.0,7.497e-05,2]
[421211590,1777260638908,-381.48121766,7.497e-05,2]
[421211591,1777260638918,-3787.0,7.5e-05,2]
[421211592,1777260638928,-174.61919141,7.572e-05,2]
[421211593,1777260638938,-1191.11104075,7.572e-05,2]
[421211594,1777260638948,-601.3376128,7.572e-05,2]
[421211595,1777260638959,-578.20924308,7.572e-05,2]
[421211596,1777260638968,-200.0,7.572e-05,2]
[421211597,1777260638978,-151.0,7.572e-05,2]
[421211598,1777260638987,-743.50770149,7.572e-05,2]
[421211599,1777260638997,-174.61919141,7.572e-05,2]
[421211600,1777260639006,-174.61919141,7.572e-05,2]
[421211601,1777260639016,-2000.0,7.6e-05,2]
[421211602,1777260639025,-151.0,7.627e-05,2]
[421211603,1777260639035,-500.0,7.675e-05,2]
[421211604,1777260639046,-500.0,7.675e-05,2]
[421211605,1777260639055,-500.0,7.675e-05,2]
[421211607,1777260639065,-500.0,7.675e-05,2]
[421211609,1777260639074,-500.0,7.675e-05,2]
[421211611,1777260639084,-500.0,7.675e-05,2]
[421211613,1777260639093,-500.0,7.675e-05,2]
[421211615,1777260639102,-500.0,7.675e-05,2]
[421211617,1777260639111,-500.0,7.675e-05,2]
[421211619,1777260639121,-500.0,7.675e-05,2]
[421211620,1777260639130,-500.0,7.675e-05,2]
[421211621,1777260639140,-500.0,7.675e-05,2]
[421211622,1777260639149,-500.0,7.675e-05,2]
[421211623,1777260639159,-500.0,7.675e-05,2]
[421211625,1777260639168,-500.0,7.675e-05,2]
[421211627,1777260639177,-500.0,7.675e-05,2]
[421211629,1777260639187,-500.0,7.675e-05,2]
[421211631,1777260639196,-500.0,7.675e-05,2]
[421211633,1777260639205,-500.0,7.675e-05,2]
[421211635,1777260639214,-500.0,7.675e-05,2]
[421211637,1777260639224,-500.0,7.675e-05,2]
[421211639,1777260639233,-240.67782082,7.675e-05,2]
[421211641,1777260639243,-151.0,7.682e-05,2]
[421211643,1777260639253,-406.9,7.704e-05,2]
[421211645,1777260639264,-151.0,7.737e-05,2]
[421211647,1777260639274,-151.0,7.792e-05,2]
[421211649,1777260639283,-150.0,7.822e-05,2]
[421211651,1777260639294,-150.0,7.83e-05,2]
[421211653,1777260639304,-151.0,7.847e-05,2]
[421211655,1777260639313,-151.0,7.902e-05,2]
[421211657,1777260639323,-151.0,7.957e-05,2]
[421211659,1777260639332,-500.0,7.973e-05,2]
[421211661,1777260639342,-250.0,7.975e-05,2]
[421211663,1777260639351,-250.0,7.975e-05,2]
[421211665,1777260639361,-250.0,7.975e-05,2]
[421211667,1777260639371,-406.9,7.978e-05,2]
[421211669,1777260639380,-345.75211,7.995e-05,2]
[421211671,1777260639390,-345.75211,7.995e-05,2]
[421211673,1777260639399,-345.75211,7.995e-05,2]
[421211675,1777260639409,-345.75211,7.995e-05,2]
[421211677,1777260639419,-151.0,8.012e-05,2]
[421211679,1777260639428,-1680.0,8.026e-05,2]
[421211681,1777260639438,-349.0,8.027e-05,2]
[421211683,1777260639448,-420.0,8.027e-05,2]
[421211685,1777260639457,-255.0,8.028e-05,2]
[421211687,1777260639467,-151.0,8.067e-05,2]
[421211689,1777260639477,-2802.0,8.1e-05,2]
[421211691,1777260639487,-231.52221675,8.12e-05,2]
[421211693,1777260639497,-1235.18214925,8.12e-05,2]
[421211696,1777260639507,-200.0,8.12e-05,2]
[421211698,1777260639517,-921.94501352,8.12e-05,2]
[421211699,1777260639527,-181.08010149,8.12e-05,2]
[421211702,1777260639537,-181.08010149,8.12e-05,2]
[421211704,1777260639547,-151.0,8.122e-05,2]
[421211706,1777260639558,-1456.85287576,8.134e-05,2]
[421211708,1777260639570,-591.9658418,8.134e-05,2]
[421211710,1777260639581,-1266.0,8.163e-05,2]
[421211712,1777260639592,-929.447,8.163e-05,2]
[421211714,1777260639602,-1222.512,8.163e-05,2]
[421211716,1777260639613,-1048.0,8.163e-05,2]
[421211718,1777260639622,-3531.0,8.163e-05,2]
[421211720,1777260639631,-310.7,8.172e-05,2]
[421211722,1777260639640,-151.0,8.177e-05,2]
[421211724,1777260639650,-4792.517481,8.178e-05,2]
[421211726,1777260639659,-691.64153846,8.198e-05,2]
[421211728,1777260639669,-274.0,8.215e-05,2]
[421211731,1777260639679,-150.0,8.215e-05,2]
[421211733,1777260639689,-200.0,8.215e-05,2]
[421211735,1777260639698,-204.323,8.215e-05,2]
[421211737,1777260639708,-250.0,8.215e-05,2]
[421211739,1777260639717,-150.581,8.215e-05,2]
[421211741,1777260639728,-150.0,8.215e-05,2]
[421211743,1777260639737,-164.438,8.215e-05,2]
[421211745,1777260639748,-166.49,8.215e-05,2]
[421211747,1777260639757,-184.164,8.215e-05,2]
[421211749,1777260639767,-250.347,8.215e-05,2]
[421211751,1777260639776,-150.299,8.215e-05,2]
[421211753,1777260639786,-150.0,8.215e-05,2]
[421211755,1777260639795,-151.0,8.215e-05,2]
[421211757,1777260639805,-366.0,8.219e-05,5]
[421211759,1777260639814,-500.0,8.219e-05,2]
[421211761,1777260639823,-500.0,8.219e-05,2]
[421211763,1777260639833,-500.0,8.219e-05,2]
[421211765,1777260639843,-500.0,8.219e-05,2]
[421211766,1777260639852,-500.0,8.219e-05,2]
[421211768,1777260639861,-343.34455716,8.219e-05,2]
[421211771,1777260639873,-500.0,8.219e-05,2]
[421211773,1777260639882,-500.0,8.219e-05,2]
[421211775,1777260639892,-150.0,8.219e-05,2]
[421211776,1777260639902,-500.0,8.219e-05,2]
[421211779,1777260639912,-500.0,8.219e-05,2]
[421211781,1777260639922,-453.13233849,8.219e-05,2]
[421211783,1777260639931,-150.0,8.219e-05,2]
[421211785,1777260639940,-500.0,8.219e-05,2]
[421211787,1777260639950,-251.77391225,8.219e-05,2]
[421211789,1777260639959,-150.0,8.219e-05,2]
[421211791,1777260639969,-500.0,8.219e-05,2]
[421211793,1777260639979,-500.0,8.219e-05,2]
[421211795,1777260639989,-300.0,8.219e-05,2]
[421211797,1777260639998,-500.0,8.219e-05,2]
[421211799,1777260640008,-500.0,8.219e-05,2]
[421211801,1777260640017,-500.0,8.219e-05,2]
[421211803,1777260640028,-591.00235493,8.219e-05,2]
[421211805,1777260640038,-500.0,8.243e-05,2]
[421211807,1777260640047,-406.9,8.252e-05,2]
[421211808,1777260640056,-507.0,8.274e-05,2]
[421211810,1777260640066,-9178.7301304,8.351e-05,2]
[421211812,1777260640075,-2391.9561307,8.352e-05,2]
[421211814,1777260640084,-4300.7532203,8.352e-05,2]
[421211816,1777260640094,-503.64121937,8.366e-05,2]
[421211817,1777260640103,-408.06863264,8.366e-05,2]
[421211818,1777260640112,-1458.9313464,8.376e-05,2]
[421211819,1777260640121,-501.4160514,8.415e-05,2]
[421211820,1777260640131,-502.56736884,8.415e-05,2]
[421211821,1777260640140,-502.59223585,8.415e-05,2]
[421211822,1777260640154,-503.28830134,8.415e-05,2]
[421211823,1777260640164,-502.93754583,8.415e-05,2]
[421211824,1777260640173,-500.0,8.517e-05,2]
[421211825,1777260640183,-1000.57781495,8.521e-05,2]
[421211826,1777260640192,-406.924825,8.526e-05,2]
[421211827,1777260640202,-250.0,8.533e-05,2]
[421211828,1777260640211,-238.66396474,8.557e-05,2]
[421211829,1777260640221,-2048.0515239,8.561e-05,2]
[421211830,1777260640230,-533.7175545,8.563e-05,2]
[421211831,1777260640239,-164.6115567,8.563e-05,2]
[421211832,1777260640249,-959.6277548,8.563e-05,2]
[421211833,1777260640258,-325.5315849,8.586e-05,2]
[421211834,1777260640268,-21815.47170467,8.63e-05,2]
[421211835,1777260640278,-345.75211,8.63e-05,2]
[421211836,1777260640287,-345.75211,8.63e-05,2]
[421211837,1777260640296,-345.75211,8.63e-05,2]
[421211838,1777260640306,-345.75211,8.63e-05,2]
[421211839,1777260640315,-1280.88388878,8.668e-05,2]
[421211840,1777260640324,-200.0,8.668e-05,2]
[421211841,1777260640334,-187.78006525,8.668e-05,2]
[421211842,1777260640343,-157.00814381,8.668e-05,2]
[421211843,1777260640352,-250.0,8.668e-05,2]
[421211844,1777260640362,-8872.14305242,8.7e-05,2]
[421211845,1777260640371,-152.0,8.742e-05,3]
[421211846,1777260640382,-500.0,8.791e-05,2]
[421211847,1777260640391,-12000.4687209,8.81e-05,2]
[421211848,1777260640400,-2351.0,8.828e-05,2]
[421211849,1777260640410,-587.0,8.829e-05,2]
[421211850,1777260640419,-433.0,8.83e-05,2]
[421211851,1777260640428,-7232.036935,8.935e-05,2]
[421211852,1777260640438,-6539.465097,8.935e-05,2]
[421211853,1777260640447,-7626.797069,8.935e-05,2]
[421211855,1777260640457,-332.0,9e-05,5]
[421211857,1777260640467,-10032.81269154,9e-05,2]
[421211858,1777260640476,-3002.12180172,9e-05,2]
[421211859,1777260640485,-5009.24504834,9e-05,2]
[421211860,1777260640494,-150.0,9e-05,2]
[421211861,1777260640503,-150.0,9e-05,2]
[421211862,1777260640512,-150.0,9e-05,2]
[421211863,1777260640521,-150.0,9e-05,2]
[421211864,1777260640531,-168.25248826,9e-05,2]
[421211865,1777260640540,-150.0,9e-05,2]
[421211866,1777260640549,-150.0,9e-05,2]
[421211867,1777260640558,-150.0,9e-05,2]
[421211868,1777260640568,-2900.0,9e-05,3]
[421211869,1777260640577,-151.0,9e-05,2]
[421211870,1777260640587,-150.0,9.016e-05,2]
[421211871,1777260640596,-150.0,9.031e-05,2]
[421211872,1777260640605,-150.0,9.037e-05,2]
[421211873,1777260640615,-150.0,9.047e-05,2]
[421211874,1777260640624,-504.5712711,9.056e-05,2]
[421211875,1777260640633,-500.0,9.056e-05,2]
[421211876,1777260640643,-1100.0,9.056e-05,2]
[421211877,1777260640652,-150.0,9.063e-05,2]
[421211878,1777260640662,-500.0,9.065e-05,2]
[421211879,1777260640671,-150.0,9.067e-05,2]
[421211880,1777260640681,-150.0,9.074e-05,2]
[421211881,1777260640690,-150.0,9.074e-05,2]
[421211882,1777260640699,-150.0,9.078e-05,2]
[421211883,1777260640708,-150.0,9.083e-05,2]
[421211884,1777260640717,-150.0,9.094e-05,2]
[421211885,1777260640726,-150.0,9.1e-05,2]
[421211886,1777260640736,-150.0,9.109e-05,2]
[421211887,1777260640745,-150.0,9.111e-05,2]
[421211888,1777260640754,-6284.0637133,9.117e-05,2]
[421211889,1777260640763,-150.0,9.125e-05,2]
[421211890,1777260640772,-150.0,9.125e-05,2]
[421211891,1777260640781,-150.0,9.133e-05,2]
[421211892,1777260640791,-150.0,9.141e-05,2]
[421211893,1777260640800,-150.0,9.146e-05,2]
[421211894,1777260640809,-150.0,9.148e-05,2]
[421211895,1777260640818,-150.0,9.156e-05,2]
[421211896,1777260640827,-150.0,9.167e-05,2]
[421211897,1777260640836,-150.0,9.172e-05,2]
[421211898,1777260640845,-150.0,9.185e-05,2]
[421211899,1777260640854,-150.0,9.188e-05,2]
[421211900,1777260640863,-150.0,9.2e-05,2]
[421211901,1777260640872,-150.0,9.2e-05,2]
[421211902,1777260640882,-150.0,9.203e-05,2]
[421211903,1777260640891,-1328.27659266,9.216e-05,2]
[421211904,1777260640901,-200.0,9.216e-05,2]
[421211905,1777260640910,-194.72792766,9.216e-05,2]
[421211906,1777260640919,-150.0,9.218e-05,2]
[421211907,1777260640928,-150.0,9.219e-05,2]
[421211908,1777260640938,-150.0,9.222e-05,2]
[421211909,1777260640947,-150.0,9.234e-05,2]
[421211910,1777260640956,-150.0,9.25e-05,2]
[421211911,1777260640966,-150.0,9.25e-05,2]
[421211912,1777260640975,-150.0,9.25e-05,2]
[421211913,1777260640985,-150.0,9.259e-05,2]
[421211914,1777260640994,-150.0,9.266e-05,2]
[421211915,1777260641004,-150.0,9.267e-05,2]
[421211916,1777260641014,-150.0,9.281e-05,2]
[421211917,1777260641023,-150.0,9.29e-05,2]
[421211918,1777260641032,-150.0,9.296e-05,2]
[421211919,1777260641042,-150.0,9.297e-05,2]
[421211920,1777260641051,-150.0,9.3e-05,2]
[421211921,1777260641061,-150.0,9.313e-05,2]
[421211922,1777260641070,-150.0,9.328e-05,2]
[421211923,1777260641080,-150.0,9.333e-05,2]
[421211924,1777260641090,-150.0,9.333e-05,2]
[421211925,1777260641099,-150.0,9.333e-05,2]
[421211927,1777260641333,-150.0,9.333e-05,2]
[421211929,1777260641346,-500.0,9.339e-05,2]
[421211930,1777260641355,-150.0,9.344e-05,2]
[421211931,1777260641365,-150.0,9.359e-05,2]
[421211932,1777260641374,-150.0,9.362e-05,2]
[421211933,1777260641383,-150.0,9.37e-05,2]
[421211934,1777260641392,-150.0,9.375e-05,2]
[421211935,1777260641402,-150.0,9.375e-05,2]
[421211936,1777260641410,-150.0,9.391e-05,2]
[421211937,1777260641419,-310.7,9.399e-05,2]
[421211938,1777260641428,-150.0,9.4e-05,2]
[421211939,1777260641438,-150.0,9.4e-05,2]
[421211940,1777260641447,-150.0,9.406e-05,2]
[421211941,1777260641457,-150.0,9.407e-05,2]
[421211942,1777260641466,-150.0,9.417e-05,2]
[421211943,1777260641475,-150.0,9.422e-05,2]
[421211944,1777260641484,-150.0,9.434e-05,2]
[421211945,1777260641493,-150.0,9.438e-05,2]
[421211946,1777260641502,-150.0,9.444e-05,2]
[421211947,1777260641511,-150.0,9.453e-05,2]
[421211948,1777260641521,-152.0,9.459e-05,4]
[421211949,1777260641530,-150.0,9.467e-05,2]
[421211950,1777260641539,-150.0,9.469e-05,2]
[421211951,1777260641549,-150.0,9.481e-05,2]
[421211952,1777260641558,-150.0,9.484e-05,2]
[421211953,1777260641567,-1402.1641427,9.499e-05,2]
[421211954,1777260641576,-296.0,9.5e-05,5]
[421211955,1777260641586,-430.42,9.5e-05,2]
[421211956,1777260641595,-161.0,9.5e-05,2]
[421211957,1777260641604,-23105.78468085,9.5e-05,2]
[421211958,1777260642746,-150.0,7.822e-05,2]
[421211959,1777260642756,-115402.9505758,9.5e-05,2]
[421211960,1777260642769,-150.0,9.5e-05,2]
[421211961,1777260642778,-150.0,9.5e-05,2]
[421211962,1777260642787,-150.0,9.5e-05,2]
[421211963,1777260642796,-150.0,9.5e-05,2]
[421211964,1777260642806,-345.75211,9.5e-05,2]
[421211965,1777260642815,-345.75211,9.5e-05,2]
[421211966,1777260642824,-345.75211,9.5e-05,2]
[421211967,1777260642833,-345.75211,9.5e-05,2]
[421211968,1777260642842,-151.0,9.5e-05,2]
[421211969,1777260642851,-150.0,9.506e-05,2]
[421211970,1777260642860,-150.0,9.516e-05,2]
[421211971,1777260642870,-150.0,9.519e-05,2]
[421211972,1777260642879,-150.0,9.531e-05,2]
[421211973,1777260642889,-150.0,9.533e-05,2]
[421211974,1777260642899,-150.0,9.547e-05,2]
[421211975,1777260642908,-150.0,9.556e-05,2]
[421211976,1777260642918,-150.0,9.563e-05,2]
[421211977,1777260642928,-150.0,9.578e-05,2]
[421211978,1777260642937,-150.0,9.578e-05,2]
[421211979,1777260642946,-150.0,9.583e-05,2]
[421211980,1777260642955,-150.0,9.593e-05,2]
[421211981,1777260642964,-150.0,9.594e-05,2]
[421211982,1777260642974,-150.0,9.6e-05,2]
[421211983,1777260642984,-150.0,9.6e-05,2]
[421211984,1777260642993,-150.0,9.609e-05,2]
[421211985,1777260643003,-447.6138794,9.613e-05,2]
[421211986,1777260643012,-150.0,9.625e-05,2]
[421211987,1777260643022,-150.0,9.625e-05,2]
[421211988,1777260643031,-150.0,9.63e-05,2]
[421211989,1777260643041,-150.0,9.641e-05,2]
[421211990,1777260643051,-150.0,9.65e-05,2]
[421211991,1777260643060,-172.59,9.656e-05,2]
[421211992,1777260643069,-150.0,9.656e-05,2]
[421211993,1777260643079,-150.0,9.667e-05,2]
[421211994,1777260643088,-150.0,9.667e-05,2]
[421211995,1777260643099,-150.0,9.667e-05,2]
[421211996,1777260643108,-150.0,9.667e-05,2]
[421211998,1777260643118,-24189.8,9.67e-05,2]
[421211999,1777260643127,-150.0,9.672e-05,2]
[421212000,1777260643137,-150.0,9.688e-05,2]
[421212001,1777260643146,-150.0,9.7e-05,2]
[421212002,1777260643155,-150.0,9.703e-05,2]
[421212004,1777260643165,-150.0,9.704e-05,2]
[421212006,1777260643174,-310.7,9.704e-05,2]
[421212007,1777260643184,-200.0,9.707e-05,2]
[421212008,1777260643194,-3292.0,9.711e-05,2]
[421212009,1777260643203,-823.0,9.712e-05,2]
[421212010,1777260643213,-736.0,9.714e-05,2]
[421212014,1777260643222,-150.0,9.719e-05,2]
[421212015,1777260643731,-150.0,9.722e-05,2]
[421212016,1777260643741,-350.0,9.726e-05,2]
[421212017,1777260643750,-150.0,9.733e-05,2]
[421212018,1777260643760,-150.0,9.734e-05,2]
[421212019,1777260643770,-150.0,9.741e-05,2]
[421212020,1777260643779,-150.0,9.75e-05,2]
[421212021,1777260643788,-150.0,9.75e-05,2]
[421212022,1777260643797,-150.0,9.75e-05,2]
[421212023,1777260643807,-1377.42282659,9.764e-05,2]
[421212024,1777260643817,-200.0,9.764e-05,2]
[421212026,1777260643827,-201.93286099,9.764e-05,2]
[421212028,1777260643837,-150.0,9.766e-05,2]
[421212029,1777260643847,-150.0,9.778e-05,2]
[421212031,1777260643856,-150.0,9.781e-05,2]
[421212033,1777260643866,-150.0,9.794e-05,2]
[421212034,1777260643875,-150.0,9.797e-05,2]
[421212035,1777260643884,-150.0,9.8e-05,2]
[421212036,1777260643894,-150.0,9.8e-05,2]
[421212038,1777260643904,-150.0,9.813e-05,2]
[421212039,1777260643914,-150.0,9.815e-05,2]